bitfinex/quotes_ETHUSD_20240719
["timestamp","ask_amount","ask_price","bid_price","bid_amount"]
[1721404189308,2.88177,3470.1,3469.4,5.7647]
[1721404189478,4.08168683,3470.2,3469.4,5.7647]
[1721404189722,2.88192,3470.0,3469.4,5.7647]
[1721404189934,4.08177683,3470.1,3469.4,5.7647]
[1721404190228,2.88177,3470.1,3469.4,5.7647]
[1721404190384,1.20000683,3470.2,3469.4,5.7647]
[1721404190587,4.08159683,3470.3,3469.4,5.7647]
[1721404191466,2.88168,3470.2,3469.4,5.7647]
[1721404191816,2.8819,3470.0,3469.4,5.7647]
[1721404192034,4.08176683,3470.1,3469.4,5.7647]
[1721404193016,2.88215,3469.7,3469.4,5.7647]
[1721404193372,3.78435496,3469.7,3469.4,5.7647]
[1721404193812,0.90220496,3469.7,3469.4,5.7647]
[1721404193968,2.88201,3469.8,3469.4,5.7647]
[1721404193969,3.78421496,3469.8,3469.4,5.7647]
[1721404194368,1.20000683,3470.0,3469.4,5.7647]
[1721404194606,1.20000683,3470.1,3469.4,5.7647]
[1721404194784,2.88185,3470.0,3469.4,5.7647]
[1721404195582,1.20000683,3470.1,3469.4,5.7647]
[1721404195880,2.88215,3469.7,3469.4,5.7647]
[1721404196071,0.90159826,3469.8,3469.4,5.7647]
[1721404196405,1.20000683,3470.1,3469.4,5.7647]
[1721404196615,2.88168,3470.2,3469.4,5.7647]
[1721404197602,4.08157683,3470.4,3469.4,5.7647]
[1721404197805,4.08157683,3470.4,3469.5,2.4471]
[1721404198005,2.88157,3470.4,3469.5,2.4471]
[1721404198305,4.08128683,3470.7,3469.6,5.7644]
[1721404198507,2.88134,3470.6,3469.6,5.7644]
[1721404198693,2.88157,3470.4,3469.6,5.7644]
[1721404199005,2.88194,3469.9,3469.6,5.7644]
[1721404199906,2.88201,3469.8,3469.6,5.7644]
[1721404200106,3.78337681,3470.0,3469.6,5.7644]
[1721404200276,2.88185,3470.0,3469.6,5.7644]
[1721404200473,1.20000683,3470.2,3469.6,5.7644]
[1721404200674,1.20000683,3470.6,3469.7,2.3224]
[1721404201002,2.88135,3470.6,3469.7,2.3224]
[1721404201206,1.20000683,3470.7,3469.7,2.3224]
[1721404201414,2.88127,3470.7,3469.7,2.3224]
[1721404201612,1.20000683,3470.8,3469.7,6.301387]
[1721404201927,4.08118683,3470.8,3469.8,5.764]
[1721404202129,2.88135,3470.6,3469.8,5.764]
[1721404202495,2.88145,3470.5,3469.8,5.764]
[1721404202831,2.88161,3470.3,3469.8,5.764]
[1721404203327,2.88177,3470.1,3469.8,5.764]
[1721404203730,2.88178,3470.1,3469.8,5.764]
[1721404204389,2.88192,3469.9,3469.8,5.764]
[1721404204934,1.20000683,3470.2,3469.8,5.764]
[1721404204935,2.88168,3470.2,3469.8,5.764]
[1721404205100,2.88176,3470.1,3469.8,5.764]
[1721404205296,2.88192,3469.9,3469.8,5.764]
[1721404206513,2.88169,3470.2,3469.8,5.764]
[1721404206732,2.8819,3470.0,3469.8,5.764]
[1721404207109,2.88192,3469.9,3469.8,5.764]
[1721404208436,8.64576,3469.9,3469.8,5.764]
[1721404208646,10.26630618,3469.9,3469.8,5.764]
[1721404208831,3.78330189,3469.9,3469.8,5.764]
[1721404209008,2.88192,3469.9,3469.8,5.764]
[1721404209203,3.78324707,3469.9,3469.8,5.764]
[1721404209427,5.76384,3469.9,3469.8,5.764]
[1721404209926,6.96562349,3469.9,3469.8,5.764]
[1721404210351,12.23814349,3469.9,3469.8,5.764]
[1721404210536,14.58636,3469.9,3469.8,5.764]
[1721404210742,14.88720352,3469.9,3469.8,5.764]
[1721404211552,16.38864836,3469.9,3469.8,5.764]
[1721404212409,7.38375271,3469.9,3469.8,5.764]
[1721404212623,6.66460794,3469.9,3469.8,5.764]
[1721404213352,2.88192,3469.9,3469.8,5.764]
[1721404214054,6.66482675,3469.9,3469.8,5.764]
[1721404214211,5.76384,3469.9,3469.8,5.764]
[1721404214406,6.96482919,3469.9,3469.8,5.764]
[1721404214946,9.84674919,3469.9,3469.8,5.764]
[1721404215251,9.19576,3469.9,3469.8,5.764]
[1721404215452,13.99869059,3469.9,3469.8,5.764]
[1721404215744,12.49658522,3469.9,3469.8,5.764]
[1721404215951,13.99871046,3469.9,3469.8,5.764]
[1721404216151,11.11679046,3469.9,3469.8,5.764]
[1721404216319,8.76384,3469.9,3469.8,5.764]
[1721404217445,5.76384,3469.9,3469.8,5.764]
[1721404217644,2.88175,3470.2,3469.8,5.764]
[1721404217855,5.88177,3470.1,3469.8,5.764]
[1721404218162,3.0,3470.1,3469.8,5.764]
[1721404218341,3.0,3470.2,3469.8,5.764]
[1721404218548,2.88175,3470.2,3469.8,5.764]
[1721404218734,2.88177,3470.1,3469.8,5.764]
[1721404220042,2.88192,3469.9,3469.8,5.764]
[1721404220240,5.76384,3469.9,3469.8,5.764]
[1721404220724,2.88192,3469.9,3469.8,5.764]
[1721404221051,5.76384,3469.9,3469.8,5.764]
[1721404221584,8.76384,3469.9,3469.8,5.764]
[1721404222893,5.88192,3469.9,3469.8,5.764]
[1721404223468,8.76384,3469.9,3469.8,5.764]
[1721404223982,11.64576,3469.9,3469.8,5.764]
[1721404224184,8.76384,3469.9,3469.8,5.764]
[1721404224491,2.88248,3469.3,3468.6,2.3516]
[1721404224695,2.88248,3469.3,3468.6,3.31976]
[1721404224891,2.88252,3469.2,3468.6,2.3516]
[1721404225091,2.88261,3469.1,3468.6,2.3516]
[1721404225456,2.88268,3469.0,3468.6,2.3516]
[1721404225781,2.88285,3468.8,3467.9,2.2815]
[1721404226776,2.88268,3469.0,3467.9,2.2815]
[1721404226977,2.88268,3469.0,3468.0,0.516518]
[1721404227299,2.88301,3468.6,3467.9,2.2815]
[1721404227986,2.88309,3468.5,3467.9,2.2815]
[1721404228161,2.88318,3468.4,3467.9,2.2815]
[1721404228860,3.78632163,3468.3,3467.9,2.2815]
[1721404229059,0.90307163,3468.2,3467.9,2.2815]
[1721404229461,3.78632163,3468.3,3467.9,2.2815]
[1721404230065,0.90307163,3468.3,3467.2,2.4539]
[1721404230267,2.88356,3468.0,3467.3,0.97169293]
[1721404230464,0.90307163,3468.1,3467.2,2.4539]
[1721404230662,2.88414,3467.3,3466.7,2.4539]
[1721404230888,2.884,3467.4,3466.7,2.4539]
[1721404231402,2.88388,3467.6,3466.7,2.4539]
[1721404231610,3.78685163,3467.7,3466.7,2.4539]
[1721404231611,2.88394,3467.5,3466.7,2.4539]
[1721404231770,2.88401,3467.4,3466.7,2.4539]
[1721404232104,2.8841,3467.3,3466.8,0.05412764]
[1721404232402,2.88381,3467.7,3466.7,2.4539]
[1721404232709,2.88381,3467.7,3466.8,0.25080276]
[1721404232710,0.45225752,3467.7,3466.8,0.25080276]
[1721404232868,0.45225752,3467.7,3466.9,2.3173]
[1721404233064,0.90307163,3468.4,3467.0,2.3173]
[1721404233265,2.88309,3468.5,3467.4,2.3173]
[1721404233508,2.88332,3468.3,3467.5,0.520141]
[1721404233710,2.88346,3468.1,3467.5,0.05408557]
[1721404233929,2.8835,3468.0,3467.5,0.05408557]
[1721404234218,0.45218866,3468.4,3467.5,0.05408557]
[1721404234219,1.35526029,3468.4,3467.5,0.05408557]
[1721404234366,2.88383,3467.7,3467.5,0.05408557]
[1721404234665,2.88367,3467.8,3466.9,2.3173]
[1721404234865,2.88375,3467.7,3467.6,0.05407957]
[1721404235099,2.88375,3467.7,3466.9,2.3173]
[1721404235300,2.88384,3467.6,3466.9,2.3173]
[1721404235484,2.88384,3467.6,3467.0,0.05411562]
[1721404236495,2.88351,3468.0,3467.0,0.05411562]
[1721404236696,2.88351,3468.0,3467.1,0.23714156]
[1721404237005,2.8836,3467.9,3467.1,0.23714156]
[1721404237211,2.88368,3467.8,3467.2,0.05447463]
[1721404237406,3.90307163,3468.3,3467.2,0.05447463]
[1721404237407,2.88381,3467.7,3467.2,0.05447463]
[1721404237735,2.88381,3467.7,3466.9,2.3173]
[1721404237736,2.88384,3467.6,3466.9,2.3173]
[1721404238111,2.88384,3467.6,3467.0,0.05448665]
[1721404238315,2.88406,3467.4,3467.0,0.05448665]
[1721404238705,2.88421,3467.2,3467.0,0.05448665]
[1721404238925,2.88421,3467.2,3467.1,0.05448064]
[1721404239202,2.88421,3467.2,3466.5,2.4556]
[1721404239420,2.88421,3467.2,3466.6,0.0545107]
[1721404239797,2.88385,3467.6,3466.6,0.0545107]
[1721404239997,2.88385,3467.6,3466.5,2.4556]
[1721404239998,2.88385,3467.6,3466.7,0.25101107]
[1721404240193,3.0,3467.9,3466.8,2.51009868]
[1721404240440,3.0,3467.9,3466.8,2.4556]
[1721404240441,2.8836,3467.9,3466.8,2.4556]
[1721404240603,2.88367,3467.8,3466.8,2.4556]
[1721404240940,2.88393,3467.5,3466.9,0.05449266]
[1721404241312,2.88412,3467.3,3466.8,2.4556]
[1721404242104,2.88412,3467.3,3466.2,3.0]
[1721404242105,2.88412,3467.3,3466.9,0.05449266]
[1721404242304,2.88423,3467.2,3466.9,0.05449266]
[1721404242517,3.0,3467.6,3466.4,5.28218]
[1721404242732,2.88381,3467.7,3466.5,2.88469]
[1721404242936,2.8839,3467.6,3466.6,0.528209]
[1721404243234,2.88369,3467.8,3466.7,0.05450469]
[1721404243536,2.8836,3467.9,3466.8,2.4046]
[1721404243736,2.88368,3467.8,3466.8,2.4046]
[1721404243905,2.88375,3467.7,3466.9,0.05449266]
[1721404244102,2.8836,3467.9,3467.0,0.24590927]
[1721404244306,2.88367,3467.8,3467.0,0.24590927]
[1721404244513,2.88367,3467.8,3467.1,0.05448064]
[1721404244821,5.88355,3468.0,3467.1,0.05448064]
[1721404245016,3.0,3467.9,3467.1,0.05448064]
[1721404245544,3.0,3467.9,3467.1,0.61342663]
[1721404246115,3.0,3468.1,3467.1,0.61342663]
[1721404246318,5.88344,3468.1,3467.1,0.61342663]
[1721404247063,3.0,3468.1,3467.1,0.61342663]
[1721404247356,3.0,3468.1,3467.1,0.05448064]
[1721404247518,2.88352,3468.0,3467.1,0.05448064]
[1721404247852,3.0,3467.9,3467.1,0.05448064]
[1721404248645,1.35526029,3468.4,3467.1,0.05448064]
[1721404248646,2.88367,3467.8,3467.1,0.05448064]
[1721404248855,3.0,3468.0,3467.1,0.05448064]
[1721404249013,2.8833,3468.3,3467.2,2.3126]
[1721404249210,0.45218866,3468.4,3467.4,2.88398]
[1721404249455,0.45218866,3468.4,3467.5,2.3668541]
[1721404250251,0.45218866,3468.4,3467.5,5.2507641]
[1721404250454,0.45218866,3468.4,3467.6,0.81348441]
[1721404250954,0.45218866,3468.4,3467.7,0.05241289]
[1721404251220,2.88364,3467.9,3467.7,0.05241289]
[1721404251361,2.88367,3467.8,3467.1,2.3859]
[1721404251557,3.78656163,3468.1,3467.1,2.3859]
[1721404251769,0.90307163,3468.0,3467.1,2.3859]
[1721404251973,2.88356,3468.0,3467.1,2.3859]
[1721404252172,2.88351,3468.0,3467.1,2.3859]
[1721404252455,2.88375,3467.7,3467.1,2.3859]
[1721404252705,2.88392,3467.5,3467.1,2.3859]
[1721404253011,2.88375,3467.7,3466.5,2.4861]
[1721404253305,2.88375,3467.7,3466.5,5.37085]
[1721404253725,2.88385,3467.6,3466.5,5.37085]
[1721404253933,2.88392,3467.5,3466.6,1.270085]
[1721404254086,2.88392,3467.5,3466.5,2.4861]
[1721404254592,2.88375,3467.7,3466.5,2.4861]
[1721404255031,2.88384,3467.6,3466.5,2.4861]
[1721404255584,2.88394,3467.5,3466.5,2.4861]
[1721404256329,0.90307163,3467.8,3466.5,2.4861]
[1721404256330,2.88412,3467.3,3466.5,2.4861]
[1721404257329,2.88397,3467.5,3466.6,0.05239863]
[1721404258324,2.88386,3467.6,3466.6,0.05239863]
[1721404258525,0.90307163,3467.7,3466.6,2.93705863]
[1721404258724,3.78684163,3467.7,3466.6,0.05239863]
[1721404258928,2.88401,3467.4,3466.6,0.05239863]
[1721404259137,2.88417,3467.2,3466.6,0.05239863]
[1721404259300,2.88426,3467.1,3466.6,0.05239863]
[1721404259508,2.88435,3467.0,3466.6,0.05239863]
[1721404259733,2.88435,3467.0,3466.5,2.4861]
[1721404259941,3.78733163,3467.1,3466.5,2.4861]
[1721404260589,0.90307163,3467.2,3466.5,2.73471]
[1721404260795,1.50144,3467.4,3466.6,0.05239863]
[1721404260796,0.90307163,3467.4,3466.6,0.05239863]
[1721404261225,0.90307163,3467.3,3466.6,0.05239863]
[1721404261528,0.90307163,3467.2,3466.6,0.05239863]
[1721404262633,0.90307163,3467.1,3466.6,0.05239863]
[1721404262795,4.08820551,3467.3,3466.5,2.4861]
[1721404262796,3.78724163,3467.2,3466.5,2.4861]
[1721404262996,0.90307163,3467.1,3466.6,0.05277814]
[1721404263300,0.90307163,3467.1,3466.5,2.4861]
[1721404263695,0.90307163,3467.1,3466.6,0.0527557]
[1721404263927,2.88446,3466.9,3466.6,0.0527557]
[1721404264261,0.90307163,3467.3,3466.6,2.88461]
[1721404264533,0.90307163,3467.7,3466.7,2.4415]
[1721404264740,3.78682163,3467.7,3466.8,0.532611]
[1721404264923,3.78698163,3467.6,3466.7,2.4942366]
[1721404265098,3.78717163,3467.3,3466.9,0.05272458]
[1721404265300,0.90307163,3467.4,3466.8,0.05273059]
[1721404265511,0.90307163,3467.4,3466.7,2.4415]
[1721404265715,0.90307163,3467.4,3466.9,0.05272458]
[1721404266033,0.90307163,3467.4,3466.8,0.05273059]
[1721404266289,3.78712163,3467.4,3466.9,0.05272458]
[1721404266395,0.90307163,3467.3,3466.9,0.05272458]
[1721404266598,0.90307163,3467.4,3466.7,2.4415]
[1721404266901,0.90307163,3467.4,3466.8,0.05273059]
[1721404267357,0.90307163,3467.2,3466.8,0.05273059]
[1721404267513,1.50163066,3467.6,3466.8,0.05273059]
[1721404267514,0.90307163,3467.6,3466.8,0.05273059]
[1721404267714,0.90307163,3467.7,3466.7,5.858712]
[1721404268026,0.90307163,3468.0,3467.4,2.2599]
[1721404268231,0.90307163,3468.3,3467.5,0.56707517]
[1721404268536,1.35526029,3468.4,3467.5,0.56707517]
[1721404268842,1.35526029,3468.4,3467.6,2.88383]
[1721404269025,0.45218866,3468.4,3467.7,2.2599]
[1721404269399,0.90307163,3468.3,3467.8,0.05262188]
[1721404269595,0.90307163,3468.3,3467.7,2.2599]
[1721404269835,1.35526029,3468.4,3467.8,0.2774296]
[1721404270043,1.35526029,3468.4,3467.9,0.05261588]
[1721404270333,1.35526029,3468.4,3467.8,0.2774296]
[1721404270525,0.90307163,3468.3,3468.0,0.05260987]
[1721404270726,0.90307163,3468.3,3467.7,2.2599]
[1721404270727,0.90307163,3468.2,3467.7,2.2599]
[1721404270944,0.90307163,3468.2,3466.9,2.2674]
[1721404271234,1.20228152,3467.9,3466.9,2.2674]
[1721404271436,0.90173347,3467.5,3467.0,0.05216735]
[1721404272351,0.90173347,3467.4,3467.0,0.05216735]
[1721404272497,0.90173347,3467.5,3467.0,0.05216735]
[1721404272698,0.90173347,3467.5,3467.0,0.62583128]
[1721404273403,0.90173347,3467.4,3467.0,0.62583128]
[1721404273604,0.90173347,3467.5,3467.0,0.62583128]
[1721404274295,1.20228152,3467.6,3467.0,0.62583128]
[1721404274296,0.90173347,3467.4,3467.0,0.62583128]
[1721404274498,0.90173347,3467.5,3467.0,0.62583128]
[1721404274700,0.90173347,3467.6,3467.1,3.46200313]
[1721404275029,0.90173347,3467.9,3467.5,2.88391]
[1721404275236,0.90173347,3467.9,3467.6,2.32023222]
[1721404275402,0.90173347,3467.9,3467.6,2.84064644]
[1721404275749,0.90173347,3468.0,3467.6,2.84064644]
[1721404276047,0.90173347,3467.9,3467.6,2.32023222]
[1721404276536,0.90173347,3468.0,3467.6,2.32023222]
[1721404277200,1.20228152,3468.1,3467.6,2.32023222]
[1721404277201,0.90173347,3467.9,3467.6,2.32023222]
[1721404277407,0.90173347,3467.8,3467.6,2.32023222]
[1721404278234,0.90173347,3467.9,3467.6,2.32023222]
[1721404278640,0.90173347,3467.8,3467.6,0.05223222]
[1721404278955,1.50506043,3467.7,3467.1,2.446]
[1721404279239,0.90267244,3467.3,3467.1,2.446]
[1721404279609,0.90267244,3467.4,3467.2,0.05200346]
[1721404280031,0.90267244,3467.5,3467.2,0.05200346]
[1721404281243,4.38831334,3467.8,3467.2,0.05200346]
[1721404281244,0.90267244,3467.3,3467.2,0.05200346]
[1721404281419,1.20356325,3467.4,3467.2,0.05200346]
[1721404281825,0.90273776,3467.3,3467.2,0.05200346]
[1721404282223,0.90273776,3467.3,3466.6,2.446]
[1721404282550,0.90273776,3467.3,3466.7,0.05210451]
[1721404283553,0.90273776,3467.2,3466.7,0.05210451]
[1721404284144,0.90273776,3467.1,3466.7,0.05210451]
[1721404284308,1.20356325,3467.3,3466.7,0.05210451]
[1721404284309,0.90273776,3467.0,3466.7,0.05210451]
[1721404285637,0.90273776,3467.1,3466.7,3.47495696]
[1721404286214,0.90273776,3467.1,3466.7,0.59039696]
[1721404286643,0.90273776,3467.2,3466.7,0.59039696]
[1721404286829,0.90273776,3467.4,3466.8,2.41847898]
[1721404287041,0.90273776,3467.7,3467.4,2.3608]
[1721404287366,1.20356325,3467.9,3467.4,2.3608]
[1721404287367,0.90273776,3467.9,3467.5,0.05205456]
[1721404287531,0.90273776,3468.0,3467.5,0.05205456]
[1721404287744,0.90273776,3468.1,3467.6,0.52968946]
[1721404288126,0.90273776,3468.1,3467.7,0.05204254]
[1721404288967,0.90273776,3468.4,3467.8,2.88367]
[1721404289128,0.90273776,3468.4,3467.9,3.58188564]
[1721404289324,0.90273776,3468.6,3467.9,3.57609079]
[1721404289532,0.90273776,3468.5,3467.9,3.57609079]
[1721404290075,1.8044616,3470.0,3469.7,2.3608]
[1721404290229,1.50381401,3470.3,3469.8,2.88194]
[1721404290430,2.1051968,3470.9,3469.7,5.0528]
[1721404290431,1.50381401,3470.9,3470.1,2.692]
[1721404290751,4.6847516,3471.9,3470.3,2.692]
[1721404290955,1.8044616,3472.0,3470.3,2.692]
[1721404291159,2.88035,3471.8,3470.4,0.05164135]
[1721404291467,4.4964616,3472.3,3470.4,2.88149]
[1721404291627,2.692,3471.9,3470.4,2.88147]
[1721404291828,3.14957,3471.8,3470.5,0.05131245]
[1721404292039,2.88046,3471.7,3470.5,0.05131245]
[1721404292241,2.88046,3471.7,3469.3,2.88237]
[1721404292242,2.88051,3471.6,3470.0,2.88181]
[1721404292436,2.88051,3471.6,3470.1,0.05133644]
[1721404292646,0.2692,3471.8,3470.1,0.05133644]
[1721404292647,2.88093,3471.1,3470.1,0.05133644]
[1721404292881,0.288093,3471.0,3469.7,5.24282]
[1721404293041,3.169143,3471.0,3470.2,0.0512148]
[1721404293236,0.288093,3471.0,3469.7,5.24288]
[1721404293462,3.0,3471.3,3469.8,0.0512705]
[1721404293666,2.88086,3471.2,3469.8,2.9332705]
[1721404293832,5.88096,3471.1,3469.8,0.0512705]
[1721404294033,2.88096,3471.1,3469.8,0.0512705]
[1721404294264,5.88076,3471.3,3469.8,2.9332505]
[1721404294473,1.124196,3471.2,3469.9,2.88192]
[1721404294671,1.124196,3471.2,3470.0,0.55]
[1721404294879,3.14957,3471.8,3470.0,0.55]
[1721404294880,3.0,3471.7,3470.0,3.4830385]
[1721404295170,3.0,3471.7,3470.3,2.88159]
[1721404295171,5.88044,3471.7,3470.3,2.88159]
[1721404295367,2.8806,3471.5,3470.2,2.88166]
[1721404295672,0.2692,3471.8,3469.7,2.3608]
[1721404295673,5.88069,3471.4,3470.3,0.0512405]
[1721404295969,2.88069,3471.4,3470.3,0.0512405]
[1721404296170,3.456891,3471.3,3469.9,2.88192]
[1721404296329,3.456891,3471.3,3470.4,0.05123451]
[1721404296330,2.88108,3471.0,3470.4,0.05123451]
[1721404296534,2.88108,3471.0,3469.7,2.3608]
[1721404296794,5.88087,3471.2,3469.7,2.3608]
[1721404296933,5.88087,3471.2,3469.8,2.9332805]
[1721404297134,0.84976799,3471.1,3469.8,2.9332805]
[1721404297569,0.84976799,3471.1,3470.0,2.88182]
[1721404297940,0.84976799,3471.1,3470.1,0.0512525]
[1721404298147,10.37033,3471.9,3470.1,2.9330025]
[1721404298378,3.583,3472.6,3470.8,2.88115]
[1721404298581,2.88039,3471.8,3470.4,2.8815]
[1721404298732,2.88018,3472.0,3470.9,0.05124182]
[1721404298929,2.88018,3472.0,3470.6,2.88133]
[1721404299171,0.57602,3471.9,3471.0,0.05123583]
[1721404299377,2.88047,3471.7,3470.4,2.8815]
[1721404299553,2.88047,3471.7,3471.1,0.05122983]
[1721404299876,2.88063,3471.5,3470.3,2.3563]
[1721404300046,2.88038,3471.8,3470.3,2.3563]
[1721404300235,4.7,3472.3,3470.7,2.88121]
[1721404300236,2.88018,3472.0,3470.7,2.88121]
[1721404300442,3.168278,3471.9,3470.8,0.0506413]
[1721404301065,0.288018,3471.9,3470.9,0.05761435]
[1721404301268,0.288018,3471.9,3471.0,0.05046828]
[1721404302039,0.288018,3471.9,3471.1,2.46361413]
[1721404302344,2.87976,3472.5,3471.2,2.93123629]
[1721404302673,2.87976,3472.5,3471.3,0.057606]
[1721404302878,2.87976,3472.5,3471.4,0.0504443]
[1721404303085,2.87976,3472.5,3471.5,0.05760597]
[1721404303276,7.49,3472.8,3471.4,0.0504443]
[1721404303514,6.46233,3473.1,3471.1,2.406]
[1721404303515,2.87995,3472.3,3471.1,2.406]
[1721404303863,2.87995,3472.3,3471.2,0.05045629]
[1721404304059,3.0,3472.7,3471.2,0.05045629]
[1721404304300,2.8794,3473.0,3471.2,0.05045629]
[1721404304301,2.88076,3471.3,3471.2,0.05045629]
[1721404304687,2.88076,3471.3,3470.4,2.4169]
[1721404304898,3.456896,3471.3,3470.4,2.4169]
[1721404305205,0.576136,3471.3,3470.5,0.05035844]
[1721404305380,2.8806,3471.5,3470.5,0.05035844]
[1721404305995,2.88044,3471.7,3470.5,0.05035844]
[1721404306201,5.88016,3472.1,3470.6,0.05761683]
[1721404306424,3.0,3472.1,3470.5,2.98939527]
[1721404306581,2.88018,3472.0,3470.7,0.05039677]
[1721404306782,2.88086,3471.2,3470.6,0.0504587]
[1721404306982,2.88086,3471.2,3470.8,0.05044671]
[1721404307182,2.88086,3471.2,3470.4,2.4169]
[1721404307183,2.88118,3470.8,3469.8,2.3007]
[1721404307568,2.88118,3470.8,3469.9,0.0505007]
[1721404307784,2.88127,3470.7,3469.9,0.0505007]
[1721404308209,3.457499,3470.7,3469.9,0.0505007]
[1721404308870,2.88135,3470.6,3469.9,0.0505007]
[1721404309204,2.88149,3470.5,3469.9,0.0505007]
[1721404309568,2.88149,3470.5,3469.8,2.3007]
[1721404309770,2.88149,3470.5,3470.0,0.0504947]
[1721404310026,2.88149,3470.5,3469.9,0.0505007]
[1721404310309,2.88149,3470.5,3469.8,2.3007]
[1721404310310,2.88149,3470.5,3470.0,0.0504947]
[1721404310678,2.88126,3470.7,3469.8,2.3007]
[1721404310893,2.88138,3470.6,3469.9,0.0505007]
[1721404311917,2.88135,3470.6,3469.9,0.0505007]
[1721404312101,2.88153,3470.4,3469.9,0.0505007]
[1721404312299,2.88161,3470.3,3469.9,0.0505007]
[1721404312627,2.88184,3470.0,3469.9,0.0505007]
[1721404312912,2.88184,3470.0,3469.9,0.05062193]
[1721404313095,2.88184,3470.0,3469.3,2.2951]
[1721404313299,2.88171,3470.2,3469.3,2.52461]
[1721404313617,2.88119,3470.8,3469.4,0.05065193]
[1721404313774,2.88119,3470.8,3469.6,2.88216]
[1721404314218,2.88119,3470.8,3469.7,0.05063393]
[1721404314714,2.88119,3470.8,3469.8,0.05062793]
[1721404315016,2.88183,3470.1,3469.8,0.05062793]
[1721404315223,2.88201,3469.8,3469.3,2.2951]
[1721404315424,2.8821,3469.7,3469.3,2.2951]
[1721404316123,2.8821,3469.7,3468.6,2.3816]
[1721404316328,2.8821,3469.7,3468.7,2.507468]
[1721404316623,2.88198,3469.9,3468.6,5.2646]
[1721404316986,2.88198,3469.9,3468.7,0.05069396]
[1721404317189,2.88198,3469.9,3468.7,2.93360396]
[1721404317386,2.88178,3470.1,3468.7,2.99124942]
[1721404317590,2.88143,3470.5,3469.0,2.3653]
[1721404317790,2.88131,3470.7,3469.4,2.88233]
[1721404318051,2.88131,3470.7,3469.5,2.41594593]
[1721404318894,2.88217,3469.6,3469.5,0.05064593]
[1721404319093,2.88217,3469.6,3468.5,7.33]
[1721404319305,2.8821,3469.7,3468.6,0.05069996]
[1721404319902,2.88247,3469.3,3468.6,0.05069996]
[1721404320143,2.88257,3469.2,3468.2,2.3653]
[1721404320443,2.88259,3469.1,3468.3,0.30112761]
[1721404320589,7.49,3470.5,3468.5,2.2934]
[1721404320795,2.88178,3470.1,3468.8,2.88283]
[1721404320989,2.88178,3470.1,3468.9,0.05100841]
[1721404321602,2.8816,3470.3,3468.9,2.88274]
[1721404321806,3.0,3470.2,3469.0,0.63927641]
[1721404322041,3.0,3470.2,3469.0,0.05100241]
[1721404322552,5.88169,3470.2,3469.0,0.05100241]
[1721404322720,2.88189,3470.0,3469.0,0.05100241]
[1721404322920,2.88189,3470.0,3468.7,2.88287]
[1721404323125,2.88193,3469.9,3469.1,0.05109154]
[1721404323448,2.88231,3469.5,3468.6,3.0]
[1721404323604,2.88231,3469.5,3468.5,5.2934]
[1721404323808,2.88263,3469.1,3468.5,2.2934]
[1721404324011,2.88263,3469.1,3468.6,0.05111036]
[1721404324209,2.8827,3469.0,3468.6,0.05111036]
[1721404324839,2.88256,3469.2,3468.6,0.05111036]
[1721404325469,2.88259,3469.1,3468.6,0.05111036]
[1721404325647,2.88276,3468.9,3468.0,2.92467608]
[1721404325956,3.470193,3469.9,3468.1,0.05114039]
[1721404326170,2.88248,3469.3,3468.1,0.05114039]
[1721404326377,2.88248,3469.3,3468.2,0.29758165]
[1721404326727,2.88234,3469.4,3468.3,0.05112838]
[1721404327660,2.88242,3469.3,3468.3,0.05112838]
[1721404327830,2.88251,3469.2,3468.3,0.05112838]
[1721404328033,2.88259,3469.1,3468.3,0.05112838]
[1721404328274,2.88284,3468.8,3468.3,0.05112838]
[1721404328482,2.88284,3468.8,3468.0,2.2787]
[1721404328639,2.88273,3469.0,3468.1,0.05114039]
[1721404328840,2.88253,3469.2,3468.1,0.05114039]
[1721404329129,2.88217,3469.6,3468.5,2.88307]
[1721404329322,2.88217,3469.6,3468.2,2.4782]
[1721404329323,2.88217,3469.6,3468.6,0.288307]
[1721404329565,2.88217,3469.6,3468.6,0.33957976]
[1721404330025,5.88201,3469.8,3468.6,0.33957976]
[1721404330230,2.88194,3469.9,3468.7,5.37391]
[1721404330573,7.49,3470.5,3468.8,2.93406075]
[1721404330574,2.8816,3470.3,3468.8,2.93406075]
[1721404330866,2.8816,3470.3,3468.9,0.62898335]
[1721404331080,3.0,3470.2,3469.0,0.05124874]
[1721404331231,2.88245,3469.3,3469.0,0.05124874]
[1721404331567,2.88245,3469.3,3468.0,5.88348]
[1721404331568,2.88084,3471.3,3469.7,2.88203]
[1721404331774,2.88094,3471.1,3469.8,5.43062003]
[1721404332132,2.88094,3471.1,3469.9,2.93303819]
[1721404332357,2.88094,3471.1,3470.0,0.60579681]
[1721404332679,2.88094,3471.1,3470.1,0.05098115]
[1721404332986,2.88101,3471.0,3470.1,0.05098115]
[1721404334080,2.8811,3470.9,3470.1,0.05098115]
[1721404334780,2.88128,3470.7,3470.1,0.05098115]
[1721404334949,2.88128,3470.7,3469.8,2.491]
[1721404335130,2.88128,3470.7,3470.2,0.05072514]
[1721404335482,2.88128,3470.7,3470.3,0.05072846]
[1721404335660,2.88128,3470.7,3469.8,2.491]
[1721404335965,2.88128,3470.7,3469.9,0.050745]
[1721404336669,2.8811,3470.9,3469.9,0.050745]
[1721404336670,2.88144,3470.5,3469.9,0.050745]
[1721404336984,2.88165,3470.3,3469.9,0.050745]
[1721404337280,2.88165,3470.3,3469.4,2.3865]
[1721404337482,2.88168,3470.2,3469.5,0.04908568]
[1721404337648,2.88185,3470.0,3469.5,0.04908568]
[1721404338144,2.88153,3470.4,3469.5,0.04908568]
[1721404338347,2.88123,3470.8,3469.5,0.04908568]
[1721404338537,3.0,3470.7,3469.5,0.04908568]
[1721404338730,2.88174,3470.2,3469.5,0.04908568]
[1721404338937,3.458069,3470.2,3469.5,0.04908568]
[1721404339162,2.88174,3470.2,3469.5,0.04908568]
[1721404339552,2.88177,3470.1,3469.5,0.04908568]
[1721404340477,2.88185,3470.0,3469.5,0.04908568]